Workbook

Sheet NSU
B1: Susanna Ojala | E1: 20.1.1998 Jalasjärvi
B2: SUPERPESIS | E2: Runkosarja | I2: Kärkilyönnit (KL), pesänvälit | P2: Ylempi loppusarja | U2: Alempi loppusarja | AB2: Arvo-ottelut ja mitalit
B3: Vuosi | C3: Sija | D3: Seura | E3: OTT | F3: KUN | G3: LÖI | H3: TOI | I3: KL | J3: 0 > 1 | K3: 1 > 2 | L3: 2 > 3 | M3: 3 > k | N3: KL-% | P3: OTT | Q3: KUN | R3: LÖI | S3: TOI | T3: KL | U3: OTT | V3: KUN | W3: LÖI | X3: TOI | Y3: KL | Z3: IL | AA3: LL | AB3: Halli | AC3: K | AD3: H | AE3: P
B4: 2012 | C4: 3. | D4: Jalas | F4: suomensarja
B5: 2013 | C5: 5. | D5: Jalas | F5: suomensarja
B6: 2014 | C6: 1. | D6: Jalas | F6: suomensarja
B7: 2015 | C7: 7. | D7: Jalas | F7: ykköspesis
B8: 2016 | C8: 4. | D8: Jalas | F8: ykköspesis
B9: 2017 | C9: 4. | D9: Jalas | F9: ykköspesis
B10: 2017 | C10: 8. | D10: SMJ | E10: 26 | F10: 0 | G10: 5 | H10: 7 | I10: 53 | J10: 28 | K10: 12 | L10: 8 | M10: 5 | N10: 35.6 % | O10: 149 | P10: 4 | Q10: 0 | R10: 0 | S10: 2 | T10: 5
B11: 2018 | C11: 5. | D11: Jalas | F11: ykköspesis
B12: 2018 | C12: 5. | D12: SMJ | E12: 26 | F12: 0 | G12: 3 | H12: 8 | I12: 40 | J12: 25 | K12: 10 | L12: 2 | M12: 3 | N12: 29.9 % | O12: 134 | P12: 3 | Q12: 0 | R12: 0 | S12: 2 | T12: 3
B13: 2019 | C13: 5. | D13: SMJ | E13: 24 | F13: 0 | G13: 1 | H13: 7 | I13: 36 | J13: 29 | K13: 4 | L13: 2 | M13: 1 | N13: 31.0 % | O13: 116 | P13: 4 | Q13: 0 | R13: 1 | S13: 0 | T13: 4
B14: 2020 | C14: 6. | D14: SMJ | E14: 20 | F14: 0 | G14: 5 | H14: 4 | I14: 28 | J14: 10 | K14: 9 | L14: 4 | M14: 5 | N14: 41.8 % | O14: 67 | P14: 3 | Q14: 0 | R14: 0 | S14: 0 | T14: 1
B15: 2021 | C15: 5. | D15: SMJ | E15: 24 | F15: 0 | G15: 9 | H15: 2 | I15: 27 | J15: 6 | K15: 5 | L15: 7 | M15: 9 | N15: 47.4 % | O15: 57 | P15: 4 | Q15: 0 | R15: 2 | S15: 0 | T15: 4
B16: 2022 | C16: 5. | D16: SMJ | E16: 24 | F16: 1 | G16: 2 | H16: 6 | I16: 37 | J16: 24 | K16: 5 | L16: 5 | M16: 3 | N16: 43.0 % | O16: 86 | P16: 4 | Q16: 1 | R16: 1 | S16: 1 | T16: 6
B17: 2023 | C17: 5. | D17: SMJ 2 | F17: ykköspesis
B18: 2023 | C18: 4. | D18: SMJ | E18: 9 | F18: 0 | G18: 0 | H18: 5 | I18: 16 | J18: 11 | K18: 3 | L18: 2 | M18: 0 | N18: 33.3 % | O18: 48 | P18: 1 | Q18: 0 | R18: 1 | S18: 0 | T18: 3
B19: 2024 | C19: 3. | D19: SMJ | E19: 21 | F19: 1 | G19: 10 | H19: 11 | I19: 47 | J19: 30 | K19: 2 | L19: 4 | M19: 11 | N19: 49.5 % | O19: 95 | P19: 2 | Q19: 0 | R19: 0 | S19: 0 | T19: 2 | AE19: 1
B20: Yhteensä | E20: =SUM(E4:E19) -> 174 | F20: =SUM(F4:F19) -> 2 | G20: 35 | H20: 50 | I20: 284 | J20: 163 | K20: 50 | L20: 34 | M20: 37 | N20: =PRODUCT(I20/O20) -> 37.8 % | O20: =SUM(O4:O19) -> 752 | P20: 25 | Q20: 1 | R20: 5 | S20: 5 | T20: 28 | U20: 0 | V20: 0 | W20: 0 | X20: 0 | Y20: 0 | Z20: 0 | AA20: 0 | AB20: 0 | AC20: 0 | AD20: 0 | AE20: 1
B21: Pesispörssi | D21: =SUM(F20:H20)+((I20-F20-G20)/3)+(E20/3)+(Z20*25)+(AA20*25)+(AB20*10)+(AC20*25)+(AD20*20)+(AE20*15) -> 242.3
B23: URA SUPERISSA | E23: OTT | F23: KUN | G23: LÖI | H23: TOI | I23: KL | K23: ka/L | L23: ka/T | M23: ka/KL | N23: K - % | P23: ENSIMMÄISET
B24: Runkosarja | E24: =PRODUCT(E20) -> 174 | F24: =PRODUCT(F20) -> 2 | G24: =PRODUCT(G20) -> 35 | H24: =PRODUCT(H20) -> 50 | I24: =PRODUCT(I20) -> 284 | K24: =PRODUCT((F24+G24)/E24) -> 0.21 | L24: =PRODUCT(H24/E24) -> 0.29 | M24: =PRODUCT(I24/E24) -> 1.63 | N24: =PRODUCT(N20) -> 37.8 % | O24: =PRODUCT(O20) -> 752 | P24: Ottelu | R24: 14.05. 2017 SMJ - Pesä Ysit 1-0 (5-0, 1-1) | AA24: 1. ottelu | AC24: 19 v 3 kk 24 pv
B25: Ylempi loppusarja | E25: =PRODUCT(P20) -> 25 | F25: =PRODUCT(Q20) -> 1 | G25: 5 | H25: 5 | I25: 28 | K25: =PRODUCT((F25+G25)/E25) -> 0.24 | L25: =PRODUCT(H25/E25) -> 0.20 | M25: =PRODUCT(I25/E25) -> 1.12 | N25: =PRODUCT(I25/O25) -> 33.7 % | O25: 83 | P25: Lyöty | R25: 17.06. 2017 SMJ - Virkiä 1-0 (1-1, 6-4) | AA25: 10. ottelu | AC25: 19 v 4 kk 28 pv
B26: Alempi loppusarja | P26: Tuotu | R26: 14.05. 2017 SMJ - Pesä Ysit 1-0 (5-0, 1-1) | AA26: 1. ottelu | AC26: 19 v 3 kk 24 pv
B27: KAIKKI | E27: =SUM(E24:E26) -> 199 | F27: =SUM(F24:F26) -> 3 | G27: =SUM(G24:G26) -> 40 | H27: =SUM(H24:H26) -> 55 | I27: =SUM(I24:I26) -> 312 | K27: =PRODUCT((F27+G27)/E27) -> 0.22 | L27: =PRODUCT(H27/E27) -> 0.28 | M27: =PRODUCT(I27/E27) -> 1.57 | N27: =PRODUCT(I27/O27) -> 37.4 % | O27: =SUM(O24:O26) -> 835 | P27: Kunnari | R27: 29.06. 2022 KeKi - SMJ 2-1 (4-8, 16-4, 1-0) | AA27: 131. ottelu | AC27: 24 v 5 kk 9 pv
B29: Seurat | D29: Jalas = Jalasjärven Jalas (1914), kasvattajaseura
D30: SMJ = Seinäjoen Maila-Jussit (1932)

Sheet Arvo-ottelut
B1: ITÄ - LÄNSI - KORTTI
B2: Susanna Ojala | C2: 20.1.1998 Jalasjärvi
B3: B-TYTÖT | C3: Itä - Länsi, tulos | D3: Joukkue | E3: Seura | G3: V | H3: T | I3: H | J3: Up. | K3: Lj. | L3: Palk. | M3: O | N3: K | O3: L | P3: T | Q3: KL | R3: 1 | S3: 2 | T3: 3 | U3: k | V3: KL-% | W3: Pelinjohtaja | X3: Yleisöä
B4: 01.07. 2017 Imatra | C4: 1-2 (2-2, 2-2, 0-1) | D4: Länsi | E4: SMJ | G4: 1 | J4: 1v | K4: 9 | M4: 1 | Q4: 1/4 | R4: 0/2 | S4: 1/1 | T4: 0/1 | V4: 25.0 % | W4: Jussi-Pekka Tanskanen | X4: 1348
